fUST/lending_fUST_20250531
["ID","MTS","AMOUNT","RATE_DAILY","PERIOD"]
[363313273,1748669433907,-430.0,0.00017542,2]
[363313274,1748669433917,-473.72,0.00017542,2]
[363313275,1748669433926,-517.09,0.00017542,2]
[363313276,1748669433937,-430.0,0.00017542,2]
[363313277,1748669433946,-430.0,0.00017542,2]
[363313278,1748669433955,-430.0,0.00017542,2]
[363313279,1748669433965,-430.0,0.00017543,2]
[363313280,1748669433975,-430.0,0.00017543,2]
[363313281,1748669433985,-1215.94,0.00017816,2]
[363313282,1748669433995,-430.0,0.00017816,2]
[363313283,1748669434006,-473.72,0.00017816,2]
[363313284,1748669434016,-517.09,0.00017816,2]
[363313285,1748669434025,-430.0,0.00017816,2]
[363313286,1748669434035,-433.32,0.00017816,2]
[363313287,1748669434044,-430.0,0.00017816,2]
[363313288,1748669434054,-430.0,0.00017817,2]
[363313289,1748669434064,-407.07797644,0.00017818,2]
[363313299,1748669438086,-235.74202356,0.00017818,2]
[363313300,1748669438096,-155.72141373,0.00017818,2]
[363313301,1748669438106,-13633.76,0.00017818,2]
[363313302,1748669438115,-444.86,0.00017818,2]
[363313303,1748669438124,-457.48,0.00017818,2]
[363313304,1748669438134,-430.0,0.00017818,2]
[363313305,1748669438143,-430.0,0.00017818,2]
[363313306,1748669438152,-430.0,0.00017818,2]
[363313307,1748669438161,-430.0,0.00017818,2]
[363313308,1748669438171,-363.92,0.00017818,2]
[363313309,1748669438180,-380.72048411,0.00017818,2]
[363313310,1748669438189,-556.73,0.00017818,2]
[363313311,1748669438198,-1215.94,0.0001809,2]
[363313312,1748669438208,-430.0,0.0001809,2]
[363313313,1748669438218,-473.72,0.0001809,2]
[363313314,1748669438227,-517.09,0.0001809,2]
[363313315,1748669438237,-430.0,0.0001809,2]
[363313316,1748669438246,-430.0,0.0001809,2]
[363313317,1748669438255,-430.0,0.00018091,2]
[363313318,1748669438265,-430.0,0.00018092,2]
[363313319,1748669438276,-455.28,0.00018092,2]
[363313320,1748669438286,-430.0,0.00018092,2]
[363313321,1748669438295,-430.0,0.00018092,2]
[363313322,1748669438305,-430.0,0.00018092,2]
[363313323,1748669438317,-430.0,0.00018092,2]
[363313324,1748669438327,-430.0,0.00018092,2]
[363313325,1748669438338,-430.0,0.00018092,2]
[363313326,1748669438348,-430.0,0.00018092,2]
[363313327,1748669438357,-430.0,0.00018092,2]
[363313328,1748669438366,-430.0,0.00018092,2]
[363313329,1748669438376,-430.0,0.00018092,2]
[363313330,1748669438386,-1844.9,0.00018092,2]
[363313331,1748669438395,-430.0,0.00018092,2]
[363313332,1748669438404,-430.0,0.00018092,2]
[363313333,1748669438413,-642.82,0.00018092,2]
[363313334,1748669438423,-13633.76,0.00018092,2]
[363313335,1748669438432,-430.0,0.00018092,2]
[363313336,1748669438441,-430.0,0.00018092,2]
[363313337,1748669438451,-556.73,0.00018092,2]
[363313338,1748669438459,-700.0,0.00018164,2]
[363313339,1748669438469,-832.29,0.00018364,2]
[363313340,1748669438621,-696.4,0.00018364,2]
[363313341,1748669438631,-1215.94,0.00018364,2]
[363313342,1748669438641,-430.0,0.00018364,2]
[363313343,1748669438650,-473.72,0.00018364,2]
[363313344,1748669438660,-517.09,0.00018364,2]
[363313345,1748669438669,-430.0,0.00018364,2]
[363313346,1748669438678,-430.0,0.00018364,2]
[363313347,1748669438687,-200.23194365,0.00018365,2]
[363313348,1748669438696,-500.0,0.00018365,2]
[363313349,1748669438706,-500.0,0.00018365,2]
[363313350,1748669438716,-500.0,0.00018365,2]
[363313351,1748669438725,-185.38870126,0.00018365,2]
[363313352,1748669438734,-430.0,0.00018365,2]
[363313353,1748669438745,-430.0,0.00018366,2]
[363313354,1748669438756,-430.0,0.00018366,2]
[363313355,1748669438767,-430.0,0.00018366,2]
[363313356,1748669438777,-430.0,0.00018366,2]
[363313357,1748669438786,-430.0,0.00018366,2]
[363313358,1748669438795,-550.94303397,0.00018366,2]
[363313359,1748669438807,-430.0,0.00018366,2]
[363313360,1748669438818,-430.0,0.00018366,2]
[363313361,1748669438828,-1844.9,0.00018366,2]
[363313362,1748669438840,-430.0,0.00018366,2]
[363313363,1748669438850,-430.0,0.00018366,2]
[363313364,1748669438859,-642.82,0.00018366,2]
[363313365,1748669438869,-13633.76,0.00018366,2]
[363313366,1748669438878,-430.0,0.00018366,2]
[363313367,1748669438887,-430.0,0.00018366,2]
[363313368,1748669438897,-556.73,0.00018366,2]
[363313369,1748669438906,-286.00885095,0.0001852,2]
[363313370,1748669438915,-500.0,0.0001852,2]
[363313371,1748669438924,-416.61628684,0.0001855,2]
[363313372,1748669438934,-420.0,0.00018561,2]
[363313373,1748669438944,-159.71522884,0.00018576,2]
[363313374,1748669438953,-832.29,0.00018638,2]
[363313375,1748669438963,-696.4,0.00018638,2]
[363313376,1748669438973,-1215.94,0.00018638,2]
[363313377,1748669438983,-430.0,0.00018638,2]
[363313378,1748669438992,-473.72,0.00018638,2]
[363313379,1748669439003,-517.09,0.00018638,2]
[363313380,1748669439012,-358.34039141,0.00018638,2]
[363313381,1748669439022,-430.0,0.00018638,2]
[363313382,1748669439032,-430.0,0.00018639,2]
[363313383,1748669439041,-430.0,0.0001864,2]
[363313384,1748669439052,-489.0017678,0.0001864,2]
[363313385,1748669439062,-430.0,0.0001864,2]
[363313386,1748669439071,-430.0,0.0001864,2]
[363313387,1748669439082,-430.0,0.0001864,2]
[363313388,1748669439093,-430.0,0.0001864,2]
[363313389,1748669439102,-1844.9,0.0001864,2]
[363313390,1748669439112,-430.0,0.0001864,2]
[363313391,1748669439121,-430.0,0.0001864,2]
[363313392,1748669439131,-642.82,0.0001864,2]
[363313393,1748669439140,-13633.76,0.0001864,2]
[363313394,1748669439150,-430.0,0.0001864,2]
[363313395,1748669439159,-556.73,0.0001864,2]
[363313396,1748669439169,-500.0,0.00018742,2]
[363313397,1748669439179,-165.5931255,0.00018742,2]
[363313398,1748669439188,-628.9302745,0.00018769,2]
[363313399,1748669439198,-13547.38399876,0.00018783,2]
[363313400,1748669439207,-762.94842248,0.000189,2]
[363313401,1748669439217,-1271.74213967,0.000189,2]
[363313402,1748669439227,-832.29,0.00018912,2]
[363313403,1748669439236,-696.4,0.00018912,2]
[363313404,1748669439246,-1215.94,0.00018912,2]
[363313405,1748669439255,-430.0,0.00018912,2]
[363313406,1748669439264,-473.72,0.00018912,2]
[363313407,1748669439274,-517.09,0.00018912,2]
[363313408,1748669439283,-274.24779214,0.00018912,2]
[363313409,1748669439293,-430.0,0.00018913,2]
[363313410,1748669439302,-430.0,0.00018914,2]
[363313411,1748669439312,-430.0,0.00018914,2]
[363313412,1748669439321,-430.0,0.00018914,2]
[363313413,1748669439332,-430.0,0.00018914,2]
[363313414,1748669439341,-430.0,0.00018914,2]
[363313415,1748669439351,-1844.9,0.00018914,2]
[363313416,1748669439360,-430.0,0.00018914,2]
[363313417,1748669439370,-430.0,0.00018914,2]
[363313418,1748669439379,-642.82,0.00018914,2]
[363313419,1748669439389,-13633.76,0.00018914,2]
[363313420,1748669439399,-430.0,0.00018914,2]
[363313421,1748669439409,-556.73,0.00018914,2]
[363313422,1748669439418,-160.0,0.00018943,2]
[363313423,1748669439427,-229.3428821,0.00018979,2]
[363313424,1748669439436,-160.0,0.00018979,2]
[363313425,1748669439446,-212.77096907,0.00018979,2]
[363313426,1748669439455,-160.0,0.00018979,2]
[363313427,1748669439464,-160.0,0.00018979,2]
[363313428,1748669439474,-12664.98044988,0.00018979,2]
[363313429,1748669439484,-423.4608169,0.00018979,2]
[363313430,1748669439493,-842.5625,0.00018979,2]
[363313431,1748669439502,-160.0,0.00018979,2]
[363313432,1748669439511,-160.0,0.00018979,2]
[363313433,1748669439521,-160.0,0.00018979,2]
[363313434,1748669439530,-1000.0,0.00019068,2]
[363313435,1748669439538,-152.27715425,0.000191,2]
[363313436,1748669439547,-1271.74213967,0.00019107,2]
[363313437,1748669439557,-500.0,0.00019178,2]
[363313438,1748669439566,-500.0,0.00019178,2]
[363313439,1748669439575,-590.28522142,0.00019178,2]
[363313440,1748669439585,-500.0,0.00019178,2]
[363313441,1748669439594,-500.0,0.00019178,2]
[363313442,1748669439602,-500.0,0.00019178,2]
[363313443,1748669439611,-500.0,0.00019178,2]
[363313444,1748669439620,-500.0,0.00019178,2]
[363313445,1748669439629,-500.0,0.00019178,2]
[363313446,1748669439638,-513.19965499,0.00019178,2]
[363313447,1748669439647,-500.0,0.00019178,2]
[363313449,1748669439656,-151.0,0.00019178,2]
[363313450,1748669439665,-339.801784,0.00019178,2]
[363313451,1748669439674,-832.29,0.00019186,2]
[363313452,1748669439683,-696.4,0.00019186,2]
[363313453,1748669439692,-1215.94,0.00019186,2]
[363313454,1748669439701,-430.0,0.00019186,2]
[363313455,1748669439710,-473.72,0.00019186,2]
[363313457,1748669439718,-517.09,0.00019186,2]
[363313458,1748669439727,-430.0,0.00019187,2]
[363313459,1748669439736,-430.0,0.00019188,2]
[363313460,1748669439745,-430.0,0.00019188,2]
[363313462,1748669439754,-430.0,0.00019188,2]
[363313464,1748669439762,-430.0,0.00019188,2]
[363313466,1748669439771,-430.0,0.00019188,2]
[363313467,1748669439780,-1844.9,0.00019188,2]
[363313468,1748669439788,-430.0,0.00019188,2]
[363313469,1748669439797,-430.0,0.00019188,2]
[363313470,1748669439806,-642.82,0.00019188,2]
[363313471,1748669439815,-13633.76,0.00019188,2]
[363313472,1748669439824,-430.0,0.00019188,2]
[363313473,1748669439832,-556.73,0.00019188,2]
[363313474,1748669439841,-1462.71,0.000192,2]
[363313475,1748669439850,-156.587,0.00019233,2]
[363313476,1748669439859,-700.0,0.0001926,2]
[363313477,1748669439867,-162.380719,0.00019288,2]
[363313478,1748669439876,-1271.74213967,0.00019314,2]
[363313479,1748669439885,-168.3888056,0.00019343,2]
[363313480,1748669439893,-174.61919141,0.00019398,2]
[363313481,1748669439903,-181.08010149,0.00019453,2]
[363313482,1748669439911,-832.29,0.0001946,2]
[363313483,1748669439920,-696.4,0.0001946,2]
[363313484,1748669439929,-1215.94,0.0001946,2]
[363313485,1748669439938,-430.0,0.0001946,2]
[363313486,1748669439947,-473.72,0.0001946,2]
[363313487,1748669439955,-517.09,0.0001946,2]
[363313488,1748669439964,-430.0,0.00019461,2]
[363313489,1748669439973,-430.0,0.00019462,2]
[363313490,1748669439982,-430.0,0.00019462,2]
[363313491,1748669439991,-430.0,0.00019462,2]
[363313492,1748669440000,-430.0,0.00019462,2]
[363313493,1748669440009,-430.0,0.00019462,2]
[363313494,1748669440019,-1844.9,0.00019462,2]
[363313495,1748669440027,-430.0,0.00019462,2]
[363313496,1748669440036,-430.0,0.00019462,2]
[363313497,1748669440045,-642.82,0.00019462,2]
[363313498,1748669440054,-13633.76,0.00019462,2]
[363313499,1748669440063,-430.0,0.00019462,2]
[363313500,1748669440072,-556.73,0.00019462,2]
[363313501,1748669440081,-187.78006525,0.00019508,2]
[363313502,1748669440090,-1271.74213967,0.00019521,2]
[363313503,1748669440099,-194.72792766,0.00019563,2]
[363313504,1748669440107,-1000.0,0.00019616,2]
[363313505,1748669440116,-201.93286099,0.00019618,2]
[363313506,1748669440125,-209.40437684,0.00019673,2]
[363313507,1748669440134,-1271.74213967,0.00019728,2]
[363313508,1748669440143,-832.29,0.00019734,2]
[363313509,1748669440152,-696.4,0.00019734,2]
[363313510,1748669440161,-1215.94,0.00019734,2]
[363313511,1748669440170,-430.0,0.00019734,2]
[363313512,1748669440179,-473.72,0.00019734,2]
[363313513,1748669440187,-517.09,0.00019734,2]
[363313514,1748669440196,-430.0,0.00019735,2]
[363313515,1748669440205,-430.0,0.00019736,2]
[363313516,1748669440214,-430.0,0.00019736,2]
[363313517,1748669440223,-430.0,0.00019736,2]
[363313518,1748669440232,-430.0,0.00019736,2]
[363313519,1748669440241,-430.0,0.00019736,2]
[363313520,1748669440250,-1844.9,0.00019736,2]
[363313521,1748669440259,-430.0,0.00019736,2]
[363313522,1748669440268,-430.0,0.00019736,2]
[363313523,1748669440277,-642.82,0.00019736,2]
[363313524,1748669440286,-13633.76,0.00019736,2]
[363313525,1748669440295,-430.0,0.00019736,2]
[363313526,1748669440304,-556.73,0.00019736,2]
[363313527,1748669440313,-1271.74213967,0.00019934,2]
[363313528,1748669440322,-571.131,0.00019945,2]
[363313529,1748669440332,-502.08399402,0.0002,2]
[363313530,1748669440341,-6298.82403136,0.0002,2]
[363313531,1748669440351,-391.7906019,0.0002,7]
[363313532,1748669440361,-35483.5639356,0.0002,2]
[363313533,1748669440371,-832.29,0.00020008,2]
[363313534,1748669440380,-696.4,0.00020008,2]
[363313535,1748669440390,-1215.94,0.00020008,2]
[363313536,1748669440399,-430.0,0.00020008,2]
[363313537,1748669440409,-473.72,0.00020008,2]
[363313538,1748669440418,-517.09,0.00020008,2]
[363313539,1748669440427,-430.0,0.00020009,2]
[363313540,1748669440437,-430.0,0.0002001,2]
[363313542,1748669440446,-430.0,0.0002001,2]
[363313544,1748669440455,-430.0,0.0002001,2]
[363313546,1748669440464,-430.0,0.0002001,2]
[363313548,1748669440478,-430.0,0.0002001,2]
[363313550,1748669440487,-1844.9,0.0002001,2]
[363313552,1748669440496,-342.28,0.0002001,2]
[363313554,1748669440505,-430.0,0.0002001,2]
[363313556,1748669440515,-642.82,0.0002001,2]
[363313558,1748669440524,-13633.76,0.0002001,2]
[363313560,1748669440533,-430.0,0.0002001,2]
[363313562,1748669440542,-556.73,0.0002001,2]
[363313564,1748669440552,-5000.0,0.0002003,2]
[363313566,1748669440561,-157.03337844,0.00020065,2]
[363313568,1748669440571,-1271.74213967,0.00020141,2]
[363313570,1748669440580,-728.4905794,0.00020164,2]
[363313572,1748669440590,-364.3142842,0.00020164,2]
[363313574,1748669440599,-364.3142842,0.00020164,2]
[363313575,1748669440608,-587.0,0.00020273,2]
[363313577,1748669440617,-221.0,0.00020274,3]
[363313579,1748669440626,-166.0,0.00020274,2]
[363313581,1748669440635,-832.29,0.00020282,2]
[363313583,1748669440644,-696.4,0.00020282,2]
[363313585,1748669440654,-1215.94,0.00020282,2]
[363313587,1748669440663,-430.0,0.00020282,2]
[363313589,1748669440672,-473.72,0.00020282,2]
[363313591,1748669440682,-517.09,0.00020282,2]
[363313593,1748669440691,-430.0,0.00020283,2]
[363313595,1748669440701,-430.0,0.00020284,2]
[363313597,1748669440711,-430.0,0.00020284,2]
[363313599,1748669440720,-430.0,0.00020284,2]
[363313601,1748669440729,-430.0,0.00020284,2]
[363313603,1748669440738,-538.14,0.00020284,2]
[363313605,1748669440747,-1844.9,0.00020284,2]
[363313607,1748669440758,-430.0,0.00020284,2]
[363313609,1748669440768,-642.82,0.00020284,2]
[363313611,1748669440777,-13633.76,0.00020284,2]
[363313613,1748669440787,-430.0,0.00020284,2]
[363313615,1748669440797,-556.73,0.00020284,2]
[363313617,1748669440806,-1271.74213967,0.00020348,3]
[363313619,1748669440816,-700.0,0.00020356,2]
[363313621,1748669440825,-1271.74213967,0.00020555,3]
[363313623,1748669440835,-832.29,0.00020556,2]
[363313625,1748669440844,-696.4,0.00020556,2]
[363313627,1748669440854,-1215.94,0.00020556,2]
[363313629,1748669440863,-430.0,0.00020556,2]
[363313631,1748669440872,-473.72,0.00020556,2]
[363313633,1748669440882,-517.09,0.00020556,2]
[363313635,1748669440891,-430.0,0.00020557,2]
[363313637,1748669440900,-430.0,0.00020558,2]
[363313639,1748669440909,-430.0,0.00020558,2]
[363313641,1748669440919,-430.0,0.00020558,2]
[363313643,1748669440928,-430.0,0.00020558,2]
[363313645,1748669440938,-1844.9,0.00020558,2]
[363313647,1748669440947,-430.0,0.00020558,2]
[363313649,1748669440956,-642.82,0.00020558,2]
[363313651,1748669440965,-13633.76,0.00020558,2]
[363313653,1748669440975,-430.0,0.00020558,2]
[363313655,1748669440984,-556.73,0.00020558,2]
[363313657,1748669440993,-3000.0,0.00020642,2]
[363313659,1748669441002,-160.0,0.0002067,3]
[363313661,1748669441011,-207.4,0.00020731,2]
[363313662,1748669441020,-5000.0,0.00020731,2]
[363313664,1748669441029,-1271.74213967,0.00020762,3]
[363313666,1748669441038,-832.29,0.0002083,2]
[363313668,1748669441048,-696.4,0.0002083,2]
[363313670,1748669441058,-1215.94,0.0002083,2]
[363313672,1748669441067,-430.0,0.0002083,2]
[363313674,1748669441077,-473.72,0.0002083,2]
[363313676,1748669441087,-517.09,0.0002083,2]
[363313678,1748669441096,-430.0,0.00020831,2]
[363313680,1748669441105,-430.0,0.00020832,2]
[363313682,1748669441114,-4001.35746561,0.00020832,2]
[363313684,1748669441123,-430.0,0.00020832,2]
[363313686,1748669441132,-430.0,0.00020832,2]
[363313688,1748669441141,-430.0,0.00020832,2]
[363313690,1748669441151,-1844.9,0.00020832,2]
[363313692,1748669441160,-222.99991208,0.00020832,2]
[363313694,1748669441170,-642.82,0.00020832,2]
[363313696,1748669441179,-13633.76,0.00020832,2]
[363313698,1748669441188,-430.0,0.00020832,2]
[363313700,1748669441197,-556.73,0.00020832,2]
[363313702,1748669441206,-1271.74213967,0.00020969,4]
[363313704,1748669441214,-666.9145776,0.00020974,23]
[363313706,1748669441224,-599.772133,0.00020979,2]
[363313708,1748669441233,-56825.51009,0.00020999,2]
[363313710,1748669441243,-14753.0,0.00021,2]
[363313712,1748669441252,-832.29,0.00021104,2]
[363313714,1748669441261,-696.4,0.00021104,2]
[363313716,1748669441272,-1215.94,0.00021104,2]
[363313718,1748669441285,-430.0,0.00021104,2]
[363313720,1748669441298,-473.72,0.00021104,2]
[363313722,1748669441307,-517.09,0.00021104,2]
[363313724,1748669441318,-204.34285801,0.00021105,2]
[363313726,1748669441327,-577.15,0.00021106,2]
[363313728,1748669441337,-430.0,0.00021106,2]
[363313730,1748669441347,-430.0,0.00021106,2]
[363313732,1748669441356,-430.0,0.00021106,2]
[363313734,1748669441365,-1844.9,0.00021106,2]
[363313736,1748669441375,-642.82,0.00021106,2]
[363313738,1748669441384,-13633.76,0.00021106,2]
[363313740,1748669441393,-430.0,0.00021106,2]
[363313742,1748669441403,-556.73,0.00021106,2]
[363313744,1748669441412,-666.9145776,0.00021115,24]
[363313746,1748669441422,-776.59145559,0.0002112,2]
[363313748,1748669441431,-1271.74213967,0.00021176,4]
[363313750,1748669441440,-2200.0,0.0002121,2]
[363313752,1748669441451,-599.772133,0.00021212,2]
[363313754,1748669441461,-151.0,0.0002123,2]
[363313756,1748669441472,-407.978989,0.0002123,2]
[363313758,1748669441483,-407.978989,0.0002123,2]
[363313760,1748669441492,-156.456511,0.0002123,2]
[363313762,1748669441502,-156.456511,0.0002123,2]
[363313764,1748669441511,-157.5499743,0.00021233,2]
[363313766,1748669441522,-157.5499743,0.00021233,2]
[363313768,1748669441530,-666.9145776,0.00021257,26]
[363313770,1748669441539,-5000.0,0.00021279,2]
[363313772,1748669441550,-151.0,0.0002133,2]
[363313774,1748669441561,-389.876165,0.0002133,2]
[363313776,1748669441570,-389.876165,0.0002133,2]
[363313778,1748669441579,-832.29,0.00021378,2]
[363313780,1748669441590,-696.4,0.00021378,2]
[363313782,1748669441599,-1215.94,0.00021378,2]
[363313784,1748669441608,-430.0,0.00021378,2]
[363313786,1748669441618,-473.72,0.00021378,2]
[363313788,1748669441627,-517.09,0.00021378,2]
[363313790,1748669441636,-430.0,0.0002138,2]
[363313792,1748669441646,-430.0,0.0002138,2]
[363313794,1748669441656,-430.0,0.0002138,2]
[363313796,1748669441665,-1844.9,0.0002138,2]
[363313798,1748669441675,-642.82,0.0002138,2]
[363313801,1748669441684,-13633.76,0.0002138,2]
[363313803,1748669441693,-430.0,0.0002138,2]
[363313804,1748669441703,-556.73,0.0002138,2]
[363313806,1748669441712,-1271.74213967,0.00021383,5]
[363313808,1748669441721,-708.0,0.00021394,2]
[363313810,1748669441731,-2228.0,0.00021394,2]
[363313812,1748669441740,-405.0,0.00021394,2]
[363313814,1748669441749,-666.9145776,0.00021399,27]
[363313817,1748669441758,-700.0,0.00021452,2]
[363313819,1748669441768,-4000.0,0.00021488,2]
[363313834,1748669441899,-599.772133,0.00021493,2]
[363313836,1748669441909,-176.4540852,0.00021534,2]
[363313838,1748669441918,-306.0,0.00021534,2]
[363313840,1748669441927,-467.9952537,0.00021534,2]
[363313841,1748669441936,-162.6182772,0.00021534,2]
[363313843,1748669441945,-666.9145776,0.00021541,28]
[363313845,1748669441955,-2045.595871,0.0002156,3]
[363313847,1748669441964,-1271.74213967,0.0002159,5]
[363313849,1748669441973,-832.29,0.00021652,2]
[363313851,1748669441985,-696.4,0.00021652,2]
[363313853,1748669441998,-1215.94,0.00021652,2]
[363313855,1748669442012,-430.0,0.00021652,2]
[363313858,1748669442021,-473.72,0.00021652,2]
[363313859,1748669442030,-517.09,0.00021652,2]
[363313861,1748669442039,-430.0,0.00021654,2]
[363313863,1748669442047,-430.0,0.00021654,2]
[363313865,1748669442057,-430.0,0.00021654,2]
[363313867,1748669442066,-1844.9,0.00021654,2]
[363313869,1748669442075,-642.82,0.00021654,2]
[363313871,1748669442085,-13633.76,0.00021654,2]
[363313873,1748669442094,-430.0,0.00021654,2]
[363313875,1748669442103,-556.73,0.00021654,2]
[363313877,1748669442114,-599.772133,0.00021673,2]
[363313879,1748669442123,-666.9145776,0.00021682,30]
[363313881,1748669442133,-3947.2191,0.00021697,15]
[363313883,1748669442142,-16613.31282326,0.000217,2]
[363313885,1748669442151,-1271.74213967,0.00021797,6]
[363313887,1748669442161,-2001.96560727,0.000218,4]
[363313889,1748669442170,-250.0,0.00021802,2]
[363313891,1748669442178,-666.9145776,0.00021824,30]
[363313893,1748669442188,-5000.0,0.00021827,2]
[363313895,1748669442197,-364.3142842,0.0002189,2]
[363313897,1748669442207,-364.3142842,0.0002189,2]
[363313899,1748669442216,-11180.54,0.000219,2]
[363313901,1748669442225,-151.0,0.000219,3]
[363313903,1748669442235,-1514.726438,0.000219,5]
[363313905,1748669442247,-152.27715424,0.000219,2]
[363313907,1748669442258,-12500.0,0.00021917,2]
[363313909,1748669442267,-200.0,0.00021917,2]
[363313911,1748669442277,-540.64,0.00021917,2]
[363313913,1748669442286,-12500.0,0.00021917,2]
[363313915,1748669442295,-3742.59133857,0.00021917,2]
[363313917,1748669442304,-1000.0,0.0002192,5]
[363313919,1748669442313,-832.29,0.00021926,2]
[363313921,1748669442323,-696.4,0.00021926,2]
[363313923,1748669442332,-1215.94,0.00021926,2]
[363313925,1748669442342,-430.0,0.00021926,2]
[363313927,1748669442351,-473.72,0.00021926,2]
[363313928,1748669442360,-517.09,0.00021926,2]
[363313930,1748669442369,-430.0,0.00021928,2]
[363313932,1748669442378,-430.0,0.00021928,2]
[363313934,1748669442387,-430.0,0.00021928,2]
[363313936,1748669442396,-1844.9,0.00021928,2]
[363313938,1748669442406,-642.82,0.00021928,2]
[363313940,1748669442415,-13633.76,0.00021928,2]
[363313942,1748669442424,-430.0,0.00021928,2]
[363313945,1748669442434,-556.73,0.00021928,2]
[363313947,1748669442443,-1000.0,0.0002194,5]
[363313948,1748669442453,-1000.0,0.0002196,5]
[363313950,1748669442463,-666.9145776,0.00021966,30]
[363313952,1748669442475,-500.0,0.00021973,2]
[363313954,1748669442484,-508.5115965,0.00021973,2]
[363313956,1748669442494,-500.0,0.00021973,2]
[363313958,1748669442503,-500.0,0.00021973,2]
[363313960,1748669442512,-500.0,0.00021973,2]
[363313962,1748669442522,-341.58993269,0.00021973,2]
[363313964,1748669442531,-450.3400897,0.00021973,2]
[363313966,1748669442540,-160.18894433,0.00021973,2]
[363313968,1748669442549,-500.0,0.00021973,2]
[363313970,1748669442559,-500.0,0.00021973,2]
[363313972,1748669442567,-500.0,0.00021973,2]
[363313974,1748669442576,-160.19413256,0.00021973,2]
[363313976,1748669442585,-1000.0,0.0002198,5]
[363313978,1748669442594,-160.0,0.00021995,4]
[363313980,1748669442603,-160.0,0.00021995,5]
[363313982,1748669442612,-500.0,0.00022,8]
[363313984,1748669442620,-2000.0,0.00022,2]
[363313986,1748669442629,-4103.45,0.00022,7]
[363313988,1748669442639,-69835.3149522,0.00022,7]
[363313991,1748669442657,-17800.0,0.00022,7]
[363314345,1748669446206,-430.0,0.00016995,2]
[363314347,1748669446216,-436.17,0.00016995,2]
[363314349,1748669446225,-430.0,0.00017818,2]
[363314351,1748669446234,-962.0,0.00020814,2]
[363314353,1748669446243,-1661.60680873,0.000215,2]
[363314626,1748669449188,-226.40848527,0.000215,2]
[363314628,1748669449197,-560.13954584,0.00022,7]
[363317072,1748669822720,500.0,0.00024658,120]
[363317073,1748669830047,500.0,0.00024658,120]
[363317074,1748669838770,500.0,0.00024658,120]
[363317075,1748669845338,500.0,0.00024658,120]
[363317076,1748669852598,500.0,0.00024658,120]
[363317077,1748669859059,500.0,0.00024658,120]
[363317078,1748669867977,500.0,0.00024658,120]
[363317079,1748669874633,500.0,0.00024658,120]
[363317080,1748669882692,500.0,0.00024658,120]
[363317081,1748669889184,500.0,0.00024658,120]
[363317082,1748669899531,500.0,0.00024658,120]
[363317083,1748669905933,500.0,0.00024658,120]
[363317084,1748669912726,500.0,0.00024658,120]
[363317085,1748669919612,500.0,0.00024658,120]
[363317086,1748669925878,500.0,0.00024658,120]
[363317087,1748669933020,500.0,0.00024658,120]
[363317088,1748669940398,500.0,0.00024658,120]
[363317089,1748669948602,500.0,0.00024658,120]
[363317090,1748669950309,693.50609788,0.00024649,120]